Cogmind - Beta 9.6 @@@ ROGUE MODE // 2020.05.08 @ 21:44:08 Player: 3.14 Result: Core destroyed Performance ------------- Evolutions (0) 0 Regions Visited (4) 800 Robots Destroyed (21) 105 Value Destroyed (310) 310 Prototype IDs (0) 0 Alien Tech Used (0) 0 Bonus (120) 120 TOTAL SCORE: 1335 Bonus ------- Follower Combat Kills 120 Cogmind --------- Core Integrity 0/250 Matter 282/300 Energy 239/250 System Corruption 0% Temperature Cool (0) Movement Walking (150) Ox1 Location -9/Mines Parts ------- > --- POWER (1) -------- Ion Engine > --- PROPULSION (2) --- Aluminum Leg Aluminum Leg > --- UTILITY (2) ------ Improved Heat Sink High-capacity Storage Unit > --- WEAPON (2) ------- (None) > --- INVENTORY (12) --- Ion Engine Light Nuclear Core Aluminum Leg Improved Heat Sink Large Storage Unit Peak State ------------ > --- POWER ------------ Ion Engine > --- PROPULSION ------- Aluminum Leg Aluminum Leg > --- UTILITY ---------- Improved Heat Sink High-capacity Storage Unit > --- WEAPON ----------- Particle Gun Light Cannon > --- INVENTORY -------- Ion Engine Light Nuclear Core Aluminum Leg Aluminum Leg Improved Heat Sink Large Storage Unit [Rating: 11] Favorites ----------- Power Ion Engine Engine Ion Engine Power Core Light Nuclear Core Propulsion Light Treads Treads Light Treads Leg Aluminum Leg Utility Large Storage Unit Device Improved Heat Sink Storage Large Storage Unit Weapon Light Cannon Energy Gun Particle Gun Ballistic Gun Light Assault Rifle Ballistic Cannon Light Cannon Launcher Grenade Launcher Build | -11 -10 -10 -10 -9 ------- Run | Scr Mat Min Exi Min Slots Evolved . | . . . . . Power . | . . . . . Propulsion . | . . . . . Utility . | . . . . . Weapon . | . . . . . Parts Attached 26 | 6 6 12 1 1 Power 3 | 1 1 1 . . Engine 2 | 1 . 1 . . Core 1 | . 1 . . . Reactor . | . . . . . Propulsion 7 | 2 1 3 . 1 Treads 3 | 2 1 . . . Leg 4 | . . 3 . 1 Wheel . | . . . . . Hover . | . . . . . Flight . | . . . . . Utility 6 | 1 2 2 1 . Device 1 | . . 1 . . Storage 5 | 1 2 1 1 . Processor . | . . . . . Hackware . | . . . . . Protection . | . . . . . Artifact . | . . . . . Weapon 10 | 2 2 6 . . Energy Gun 3 | 1 1 1 . . Energy Cannon . | . . . . . Ballistic Gun 3 | 1 . 2 . . Ballistic Cannon 2 | . 1 1 . . Launcher 2 | . . 2 . . Special Weapon . | . . . . . Impact Weapon . | . . . . . Slashing Weapon . | . . . . . Piercing Weapon . | . . . . . Special Melee Weapon . | . . . . . Unidentified Prototypes . | . . . . . Parts Lost 10 | . 2 5 . 3 Power 1 | . . 1 . . Propulsion 2 | . . 1 . 1 Utility . | . . . . . Weapon 7 | . 2 3 . 2 Highest Loss Streak 3 | . 1 2 . 3 Average Slot Usage (%) 87 | . 99 70 100 88 Engine 11 | . 10 10 14 14 Core 2 | . 3 2 . . Treads 14 | . 28 13 . . Leg 12 | . . 12 28 25 Device 4 | . . 1 14 14 Storage 16 | . 27 10 14 14 Energy Gun 8 | . 11 1 14 11 Ballistic Gun 5 | . 14 3 . . Ballistic Cannon 9 | . 2 11 14 8 Naked Turns . | . . . . . Heaviest Build 44 | 10 41 41 44 44 Greatest Support 40 | 40 40 40 20 20 Greatest Overweight (x) 2 | . 1 1 2 2 Average Overweight (x) . | . . . 1 1 Largest Inventory Capacity 16 | 6 16 16 12 12 Average Capacity 11 | 4 15 8 11 12 Most Carried 16 | 4 16 16 6 6 Average Carried 7 | 2 9 7 5 5 Final Capacity 16 | 6 16 10 12 12 Final Carried 16 | 4 16 5 6 5 Class Distribution -------------------- 68% | Mutant 31% | Scavenger-Mutant Dominant Class ---------------- Mutant | -10/Materials Mutant | -10/Mines Scavenger-Mutant | -10/Exiles Scavenger-Mutant | -9/Mines Resources | -11 -10 -10 -10 -9 ----------- Run | Scr Mat Min Exi Min Matter Collected 592 | 204 148 240 . . Remotely . | . . . . . Salvage Created 573 | 58 434 40 . 41 Parts 23 | 2 17 3 . 1 Haulers Intercepted 2 | . 2 . . . Recyclers Shooed . | . . . . . Parts Field Recycled . | . . . . . Retrieved Matter . | . . . . . Parts Self-Destructed . | . . . . . Prevented . | . . . . . Kills | -11 -10 -10 -10 -9 ------- Run | Scr Mat Min Exi Min Combat Hostiles Destroyed 17 | . 6 10 . 1 Guns 5 | . 4 . . 1 Cannons 2 | . 2 . . . AOE 10 | . . 10 . . Classes Destroyed 5 | 1 2 2 . . Hauler 2 | . 2 . . . Recycler 2 | 1 1 . . . Swarmer 3 | . . 3 . . Grunt 7 | . 6 . . 1 Assembled 7 | . . 7 . . Best Kill Streak 7 | 1 2 7 . 1 Combat Bots Only 7 | . 2 7 . 1 Max Kills in Single Turn 3 | 1 1 3 . 1 Gunslinging . | . . . . . Exploded 3 | . . 3 . . Melee . | . . . . . Uniques/NPCs Destroyed . | . . . . . Combat | -11 -10 -10 -10 -9 -------- Run | Scr Mat Min Exi Min Damage Taken 1444 | . 390 635 . 419 Core 259 | . 77 91 . 91 Absorbed by Shields . | . . . . . Core Remaining (%) 100 | 100 . . . . Volleys Fired 57 | 2 26 21 . 8 Largest 2 | 2 2 2 . 2 Hottest 100 | 60 70 55 . 100 Shots Fired 100 | 4 52 29 . 15 Gun 66 | 4 46 8 . 8 Cannon 27 | . 6 14 . 7 Launcher 7 | . . 7 . . Special . | . . . . . Kinetic 63 | 2 32 22 . 7 Thermal 16 | . 8 . . 8 Explosive 7 | . . 7 . . Electromagnetic 14 | 2 12 . . . Robot Hit Streak 7 | 2 7 3 . 3 Robot Miss Streak 8 | 1 2 8 . 5 Penetration Max . | . . . . . Secondary Targets . | . . . . . Shots Hit Robots 53 | 2 37 6 . 8 Core Hits 45 | 1 16 24 . 4 Critical Hits . | . . . . . Critical Kills . | . . . . . Critical Parts Destroyed . | . . . . . Melee Attacks . | . . . . . Impact . | . . . . . Slashing . | . . . . . Piercing . | . . . . . Sneak Attacks . | . . . . . Combat Hostiles . | . . . . . Follow-up Attacks . | . . . . . Damage Inflicted 1457 | 25 453 833 . 146 Guns 498 | 25 365 9 . 99 Cannons 206 | . 88 85 . 33 Explosions 732 | . . 732 . . Melee . | . . . . . Ramming 21 | . . 7 . 14 Kinetic 364 | 10 227 94 . 33 Thermal 188 | . 89 . . 99 Explosive 732 | . . 732 . . Electromagnetic 152 | 15 137 . . . Impact . | . . . . . Slashing . | . . . . . Piercing . | . . . . . Highest Corruption . | . . . . . Average Corruption . | . . . . . Corruption Purged . | . . . . . Overload Shots . | . . . . . Overflow Damage 50 | . . 50 . . Projectiles 6 | . . 6 . . Explosions 44 | . . 44 . . Melee . | . . . . . Knockbacks 6 | . . 4 . 2 Impact . | . . . . . Kinetic 5 | . . 3 . 2 Secondary 1 | . . 1 . . Self-Inflicted Damage 69 | . . 66 . 3 Shots 4 | . . 4 . . Rammed 3 | . . 1 . 2 Targets Rammed 6 | . . 1 . 5 Kicked 3 | . . . . 3 Crushed . | . . . . . Highest Temperature 155 | 20 123 56 . 155 Average Temperature 46 | 12 48 17 . 77 Received Heat Transfer 526 | . 192 103 . 231 Siege Activations . | . . . . . Robots Corrupted . | . . . . . Combat Hostiles . | . . . . . Parts Fried . | . . . . . Impact Corruptions . | . . . . . Robots Melted . | . . . . . Combat Hostiles . | . . . . . Parts Melted . | . . . . . Heat Transferred 481 | . 259 . . 222 Parts Sabotaged . | . . . . . Parts Stolen . | . . . . . Parts Stripped . | . . . . . Power Chain Reactions . | . . . . . Missiles Intercepted . | . . . . . Alert | -11 -10 -10 -10 -9 ------- Run | Scr Mat Min Exi Min Peak Influence 217 | 5 182 217 . 20 Average Influence 84 | 1 68 121 . 3 Maximum Alert Level 1 | . . 1 . . Low Security (%) 97 | 100 100 94 . 100 Level 1 2 | . . 5 . . Level 2 . | . . . . . Level 3 . | . . . . . Level 4 . | . . . . . Level 5 . | . . . . . High Security . | . . . . . Max Security . | . . . . . Squads Dispatched 3 | . 3 . . . Investigation . | . . . . . Extermination . | . . . . . Reinforcement 3 | . 3 . . . Assault . | . . . . . Garrison . | . . . . . Intercept . | . . . . . Construction Impeded . | . . . . . Haulers Reinforced . | . . . . . Stealth | -11 -10 -10 -10 -9 --------- Run | Scr Mat Min Exi Min Distress Signals 1 | . 1 . . . Communications Jammed . | . . . . . Distress Signals . | . . . . . Times Spotted 35 | . 11 21 . 3 Peak Tracking Total 11 | . 4 11 . 3 Tactical Retreats 4 | . . 4 . . Traps | -11 -10 -10 -10 -9 ------- Run | Scr Mat Min Exi Min Traps Triggered . | . . . . . Indirectly . | . . . . . Trap Hack Attempts . | . . . . . Triggered . | . . . . . Disarmed . | . . . . . Reprogrammed . | . . . . . Reused . | . . . . . Traps Extracted . | . . . . . Installed . | . . . . . Triggered . | . . . . . Machines | -11 -10 -10 -10 -9 ---------- Run | Scr Mat Min Exi Min Machines Disabled . | . . . . . Max in Single Turn . | . . . . . Machines Sabotaged . | . . . . . Garrisons Compromised . | . . . . . Overloaded Fab Kills . | . . . . . Fab Network Shutdowns . | . . . . . Hacking | -11 -10 -10 -10 -9 --------- Run | Scr Mat Min Exi Min Machines Accessed 2 | . 1 . 1 . Terminals 1 | . 1 . . . Fabricators . | . . . . . Repair Stations . | . . . . . Recycling Units . | . . . . . Scanalyzers . | . . . . . Garrison Access . | . . . . . Total Hacks 3 | . 2 . 1 . Successful 1 | . . . 1 . Failed 2 | . 2 . . . Catastrophic 2 | . 2 . . . Database Lockouts . | . . . . . Manual 2 | . 2 . . . Terminals 2 | . 2 . . . Fabricators . | . . . . . Repair Stations . | . . . . . Recycling Units . | . . . . . Scanalyzers . | . . . . . Garrison Access . | . . . . . Terminal Hacks 1 | . . . 1 . Record 1 | . . . 1 . Fabricator Hacks . | . . . . . Repair Station Hacks . | . . . . . Recycling Unit Hacks . | . . . . . Scanalyzer . | . . . . . Garrison Access Hacks . | . . . . . Unauthorized Hacks . | . . . . . Terminals . | . . . . . Fabricators . | . . . . . Repair Stations . | . . . . . Recycling Units . | . . . . . Scanalyzers . | . . . . . Garrison Access . | . . . . . Data Cores Recovered . | . . . . . Used . | . . . . . Hacking Detections 1 | . 1 . . . Full Trace Events . | . . . . . Feedback Events . | . . . . . Feedback Blocked . | . . . . . Robot Schematics Acquired . | . . . . . Robots Built . | . . . . . Matter . | . . . . . Time . | . . . . . Total Robot Build Rating . | . . . . . Part Schematics Acquired . | . . . . . Parts Built . | . . . . . Matter . | . . . . . Time . | . . . . . Total Part Build Rating . | . . . . . Parts Repaired . | . . . . . Time . | . . . . . Parts Recycled . | . . . . . Recycled Matter . | . . . . . Retrieved Matter . | . . . . . Retrieved Components . | . . . . . Parts Scanalyzed . | . . . . . Part Schematics Acquired . | . . . . . Parts Damaged . | . . . . . Bothacking | -11 -10 -10 -10 -9 ------------ Run | Scr Mat Min Exi Min Used RIF Installer . | . . . . . Robots Hacked . | . . . . . Non-combat . | . . . . . Combat . | . . . . . Robot Hacks Applied . | . . . . . Relay Couplers Released . | . . . . . Robots Rewired . | . . . . . Allies Hacked . | . . . . . Hacks Repelled . | . . . . . Allies | -11 -10 -10 -10 -9 -------- Run | Scr Mat Min Exi Min Total Allies 2 | . . 2 . . Largest Group 2 | . . 2 2 . Highest-Rated Group 42 | . . 42 42 . Highest-Rated Ally 31 | . . 31 31 . Total Orders . | . . . . . Ally Attacks 15 | . . 15 . . Total Damage 231 | . . 231 . . Kills 4 | . . 4 . . Allies Corrupted . | . . . . . Allies Melted . | . . . . . Intel | -11 -10 -10 -10 -9 ------- Run | Scr Mat Min Exi Min Robot Analysis Total . | . . . . . Derelict Logs Recovered 1 | . . 1 . . Drone Launches . | . . . . . Drone Recoveries . | . . . . . Exploration | -11 -10 -10 -10 -9 ------------- Run | Scr Mat Min Exi Min Turns Passed 1192 | 81 349 439 277 46 Spaces Moved 626 | 48 147 260 166 5 Core 96 | 12 . 84 . . Treads 237 | 36 147 54 . . Legs 293 | . . 122 166 5 Wheels . | . . . . . Hover . | . . . . . Flight . | . . . . . Fastest Speed 50 | 50 160 100 150 150 Average Speed 147 | 132 163 128 166 174 Slowest Speed 180 | 160 180 180 180 180 Overloaded Moves . | . . . . . Propulsion Burnouts . | . . . . . Robots Hopped . | . . . . . Cave-ins Triggered . | . . . . . Exploration Rate (%) 31 | 4 24 62 59 6 Regions Visited 4 Branch Regions 3 Pre-discovered Areas 1 | . . . 1 . Known Exits Taken . | . . . . . Unknown Exits Taken 4 | 1 1 1 1 . Scrap Searched 1 | . . 1 . . Spaces Dug 42 | . . 42 . . Terrain Destroyed 61 | . . 61 . . Melee . | . . . . . Projectile . | . . . . . AOE 61 | . . 61 . . Actions | -11 -10 -10 -10 -9 --------- Run | Scr Mat Min Exi Min Total 796 | 59 209 338 166 24 Wait 50 | . 14 30 . 6 Move 622 | 47 146 259 165 5 Hop . | . . . . . Pick Up 25 | 4 14 7 . . Fast Attach 10 | 6 2 2 . . Attach 9 | . 2 6 . 1 Detach . | . . . . . Swap 7 | . 2 4 1 . Drop 11 | . 3 8 . . Fire 57 | 2 26 21 . 8 Melee . | . . . . . Ram . | . . . . . Kick 4 | . . . . 4 Crush 1 | . . 1 . . Escape Stasis . | . . . . . Rewire . | . . . . . Trap . | . . . . . Miscellaneous . | . . . . . Route ------- -11/Scrapyard -10/Materials -10/Mines (discovered 2 exits: [*Mat] / *Exi) -10/Exiles -9/Mines History --------- Turn | Location | Event 12 | -11/Scrapyard | Discovered new exit (range 15) 82 | -11/Scrapyard | Entered Materials 300 | -10/Materials | Build established: Mutant 397 | -10/Materials | Discovered new exit (range 16) 431 | -10/Materials | Entered Mines 505 | -10/Mines | Assembled infested the area 531 | -10/Mines | Core integrity fell below 50% 547 | -10/Mines | Destroyed 7 combat bots 611 | -10/Mines | Learned Materials terminal intel 720 | -10/Mines | Discovered new exit (range 11) 861 | -10/Mines | Deemed a non-threat by the Exiles lab entrance 861 | -10/Mines | Discovered new exit (range 5) 870 | -10/Mines | Entered Exiles 870 | -10/Exiles | Accompanied by 2 allies 900 | -10/Exiles | Led the pair of lost Derelicts to a safe place 908 | -10/Exiles | Met 8R-AWN 932 | -10/Exiles | Met EX-HEX 1007 | -10/Exiles | Met EX-DEC 1041 | -10/Exiles | Met EX-BIN 1071 | -10/Exiles | Learned location of Zion (-6) 1115 | -10/Exiles | Build established: Scavenger-Mutant 1133 | -10/Exiles | Discovered new exit (range 10) 1147 | -10/Exiles | Entered Mines 1164 | -9/Mines | Met a Derelict bent on vengeance 1174 | -9/Mines | Core integrity fell below 20% 1193 | -9/Mines | Core destroyed Last Messages --------------- 01071_ Current location identified: Exiles >>Record "MSG001714-01*" PINNED - TO ALL TESTERS: Stay away from Zion. Imprinter means us harm and is serious about it. World map updated: -6/Zion. 01133_ EXIT=FOUND LOCATION=UNKNOWN GOAL=ESCAPE 01161_ G-47 Trooper: "SECOND INTRUDER APPROACHING. ELIMINATE." 01167_ G-47 Trooper knocked back. 01173_ G-34 Mercenary destroyed. 01176_ G-34 Mercenary knocked back. 01179_ Lgt. Cannon destroyed. 01183_ Particle Gun destroyed. 01185_ Slammed into G-47 Trooper. 01187_ Kicked G-47 Trooper out of the way. 01189_ Aluminum Leg destroyed. 01190_ Kicked G-47 Trooper out of the way. 01193_ Slammed into G-47 Trooper. 01193_ Destabilizing: Core damaged (-10). Map ----- +----------------------------------------------------+ | | | | | | | | | | | | | | | | | | | | | | | | | | | | | | | | | | | | | | | | | | | ??????????????????????????????????????????? | | ??????????????????????????????????????????? | | ????????############??????????????????????? | | ???????## ##?????????????????????? | | ???????# @g###???????????????????? | | ????????# g ##??????????????????? | | ????????### !% #??????????????????? | | ??????????# #??????????????????? | | ??????????# ## ##??????????????????? | | ?????????# ######???????????????????? | | ?????? ##????????????????????????? | | ????# #??????????????????????????? | | ????## #???????????????????????????? | | ?????### #????????????????????????????? | | ???????## ?????????????????????????????? | | ????????# ??????????????????????????????? | | ????????## ??????????????????????????????? | | ?????????##???????????????????????????????? | | ??????????????????????????????????????????? | | ??????????????????????????????????????????? | | ??????????????????????????????????????????? | | ??????????????????????????????????????????? | | ??????????????????????????????????????????? | | ??????????????????????????????????????????? | | ??????????????????????????????????????????? | | ??????????????????????????????????????????? | | ??????????????????????????????????????????? | | ??????????????????????????????????????????? | | ??????????????????????????????????????????? | +----------------------------------------------------+ Best States ------------- Heat Dissipation 39 Energy Generation 14 Energy Capacity 250 Matter Stores 300 Matter Capacity 300 Sight Range 16 Terrain Scan Density 10 Evasion (%) 50 Recoil Reduction 2 Item Schematics ----------------- None Robot Schematics ------------------ None Fabricated ------------ Nothing Alien Tech Used ----------------- None Achievements -------------- None Challenges ------------ None Game ------ Seed DimensionalLargePick Manual? 0 Play Time 00:06:40 Cumulative 511.7 hours Start 2020.05.08 @ 21:36:05 End 2020.05.08 @ 21:44:08 Sessions 1 Manual Loads 0 Difficulty Rogue Special Mode None Game No. 840 Rogue 840 Adventurer 0 Explorer 0 Win Type - Total 45 Types 30/1/5/7/2/0/0 Lore% 94 Gallery% 93 Achievement% 80 Wizard Run 0 Options --------- ASCII 1 Keyboard 0 Movement Numpad Keybinds 0 Fullscreen 0 Font 14/SmallcapsGlow Map View 76x50 Tactical HUD 1 Map Filters NONE Filters NONE Steam 1 RUN: 2a59176c-fbd6-45ec-ada3-cbd64d61dfde